[Event "*** Titled Tuesday 3|2 Blitz"]
[Site "Chess.com"]
[Date "2016.07.05"]
[Round "5"]
[White "FairChess_on_YouTube"]
[Black "VerdeNotte"]
[Result "1/2-1/2"]
[WhiteElo "2723"]
[BlackElo "2639"]
[TimeControl "180+2"]
[EndTime "12:02:40 PDT"]
[Termination "Game drawn by agreement"]

1. d4 {[%clk 0:03:01.9]} 1... g6 {[%clk 0:02:58.9]} 2. c4 {[%clk 0:03:03.4]}
2... Nf6 {[%clk 0:02:59.3]} 3. Nc3 {[%clk 0:03:04.6]} 3... Bg7 {[%clk 0:03:00]}
4. e4 {[%clk 0:03:05.4]} 4... O-O {[%clk 0:03:00]} 5. Be3 {[%clk 0:03:06.4]}
5... c5 {[%clk 0:02:58.1]} 6. dxc5 {[%clk 0:03:02]} 6... Qa5 {[%clk 0:02:51.6]}
7. Bd3 {[%clk 0:02:58.3]} 7... Na6 {[%clk 0:02:43.1]} 8. e5 {[%clk 0:02:57.2]}
8... Ne8 {[%clk 0:02:30.8]} 9. Nf3 {[%clk 0:02:55.6]} 9... Nxc5 {[%clk
0:02:31.4]} 10. O-O {[%clk 0:02:56.1]} 10... Nxd3 {[%clk 0:02:29.1]} 11. Qxd3
{[%clk 0:02:58]} 11... d6 {[%clk 0:02:25.5]} 12. Nd5 {[%clk 0:02:52.8]} 12...
dxe5 {[%clk 0:02:20]} 13. b4 {[%clk 0:02:28.6]} 13... Qd8 {[%clk 0:02:19.3]} 14.
Bc5 {[%clk 0:02:28.5]} 14... Nd6 {[%clk 0:02:17.5]} 15. Nxe7+ {[%clk 0:02:17.8]}
15... Qxe7 {[%clk 0:02:16.9]} 16. Bxd6 {[%clk 0:02:19.3]} 16... Rd8 {[%clk
0:01:58.8]} 17. c5 {[%clk 0:02:20.4]} 17... e4 {[%clk 0:01:41.5]} 18. Qe3 {[%clk
0:02:16.2]} 18... Qe6 {[%clk 0:01:12.6]} 19. Ng5 {[%clk 0:02:07.1]} 19... Qc4
{[%clk 0:01:12.5]} 20. Qxe4 {[%clk 0:01:54.8]} 20... Qxe4 {[%clk 0:01:12.6]} 21.
Nxe4 {[%clk 0:01:56.7]} 21... Bf5 {[%clk 0:01:09.6]} 22. Rae1 {[%clk 0:01:54]}
22... Re8 {[%clk 0:00:53.6]} 23. f3 {[%clk 0:01:55.1]} 23... Bd4+ {[%clk
0:00:54.4]} 24. Kh1 {[%clk 0:01:56.2]} 24... Be6 {[%clk 0:00:51.6]} 25. Rd1
{[%clk 0:01:50.7]} 25... Bc4 {[%clk 0:00:52]} 26. Rxd4 {[%clk 0:01:47]} 26...
Bxf1 {[%clk 0:00:52.8]} 27. Kg1 {[%clk 0:01:40.2]} 27... Bb5 {[%clk 0:00:52.2]}
28. Kf2 {[%clk 0:01:19.9]} 28... Kg7 {[%clk 0:00:50.7]} 29. g4 {[%clk
0:01:19.5]} 29... Bc6 {[%clk 0:00:47.7]} 30. Nc3 {[%clk 0:01:16.9]} 30... b5
{[%clk 0:00:48.8]} 31. cxb6 {[%clk 0:00:57]} 31... axb6 {[%clk 0:00:49.6]} 32.
b5 {[%clk 0:00:58.5]} 32... Bb7 {[%clk 0:00:48]} 33. a4 {[%clk 0:00:58.3]} 33...
Rac8 {[%clk 0:00:45.2]} 34. Bb4 {[%clk 0:00:58.9]} 34... Red8 {[%clk 0:00:44.8]}
35. Rxd8 {[%clk 0:00:51.4]} 35... Rxd8 {[%clk 0:00:46.7]} 36. Ke3 {[%clk
0:00:50.5]} 36... Re8+ {[%clk 0:00:47.9]} 37. Kf2 {[%clk 0:00:50.4]} 37... Rc8
{[%clk 0:00:48.6]} 38. g5 {[%clk 0:00:43.3]} 38... Rc4 {[%clk 0:00:47.5]} 39.
Be7 {[%clk 0:00:38.2]} 39... f5 {[%clk 0:00:48.4]} 40. Bf6+ {[%clk 0:00:32.5]}
40... Kf7 {[%clk 0:00:49.2]} 41. Ke3 {[%clk 0:00:34]} 41... Rh4 {[%clk
0:00:46.9]} 42. Bd4 {[%clk 0:00:32]} 42... f4+ {[%clk 0:00:46.7]} 43. Kd3 {[%clk
0:00:31.1]} 43... Bxf3 {[%clk 0:00:46.7]} 44. Bxb6 {[%clk 0:00:31.6]} 44... Rxh2
{[%clk 0:00:47.5]} 45. a5 {[%clk 0:00:30.6]} 45... h6 {[%clk 0:00:35.5]} 46. Bd8
{[%clk 0:00:24.5]} 46... hxg5 {[%clk 0:00:34.6]} 47. Bxg5 {[%clk 0:00:23.1]}
47... Ke6 {[%clk 0:00:17.3]} 48. Bxf4 {[%clk 0:00:23.8]} 48... Rh4 {[%clk
0:00:18.3]} 49. Be3 {[%clk 0:00:21.5]} 49... Rb4 {[%clk 0:00:18.2]} 50. a6
{[%clk 0:00:19.9]} 50... Kd6 {[%clk 0:00:17.5]} 51. b6 {[%clk 0:00:17.5]} 51...
Kc6 {[%clk 0:00:18.6]} 52. b7 {[%clk 0:00:15.1]} 52... Rxb7 {[%clk 0:00:17.3]}
53. axb7 {[%clk 0:00:17]} 53... Kxb7 {[%clk 0:00:19.2]} 54. Bf4 {[%clk
0:00:17.8]} 54... Kc6 {[%clk 0:00:20.2]} 55. Kd4 {[%clk 0:00:19.1]} 55... Bg4
{[%clk 0:00:21.1]} 56. Ne4 {[%clk 0:00:19.9]} 56... Bf5 {[%clk 0:00:22.3]} 57.
Ng5 {[%clk 0:00:21.1]} 57... Kb5 {[%clk 0:00:22.5]} 1/2-1/2

[Event "*** Titled Tuesday 3|2 Blitz"]
[Site "Chess.com"]
[Date "2016.07.05"]
[Round "5"]
[White "ilya261991"]
[Black "TheLancer"]
[Result "1-0"]
[WhiteElo "2454"]
[BlackElo "2463"]
[TimeControl "180+2"]
[EndTime "12:02:47 PDT"]
[Termination "ilya261991 won on time"]

1. d4 {[%clk 0:03:01.9]} 1... Nf6 {[%clk 0:02:58.2]} 2. c4 {[%clk 0:03:02.7]}
2... e6 {[%clk 0:02:58.9]} 3. Nf3 {[%clk 0:03:03.2]} 3... Bb4+ {[%clk
0:03:00.4]} 4. Nbd2 {[%clk 0:03:03.7]} 4... O-O {[%clk 0:02:58]} 5. a3 {[%clk
0:03:02.3]} 5... Bxd2+ {[%clk 0:02:58.8]} 6. Bxd2 {[%clk 0:03:01.8]} 6... d6
{[%clk 0:03:00.7]} 7. g3 {[%clk 0:03:01.1]} 7... Nbd7 {[%clk 0:03:00.8]} 8. Bg2
{[%clk 0:03:01.8]} 8... Qe7 {[%clk 0:03:02]} 9. O-O {[%clk 0:03:01.8]} 9... e5
{[%clk 0:03:03.7]} 10. b4 {[%clk 0:03:00.4]} 10... c5 {[%clk 0:02:47.8]} 11.
dxc5 {[%clk 0:02:48]} 11... dxc5 {[%clk 0:02:47.8]} 12. Qc2 {[%clk 0:02:43.9]}
12... h6 {[%clk 0:02:34.1]} 13. Nh4 {[%clk 0:02:42.6]} 13... e4 {[%clk 0:02:08]}
14. Nf5 {[%clk 0:02:26]} 14... Qe5 {[%clk 0:01:55.8]} 15. Ne3 {[%clk 0:02:24.1]}
15... Qh5 {[%clk 0:01:55]} 16. Bc3 {[%clk 0:02:03.8]} 16... Re8 {[%clk
0:01:23.7]} 17. Rad1 {[%clk 0:01:56.5]} 17... Ne5 {[%clk 0:01:14.3]} 18. Rd6
{[%clk 0:01:46.3]} 18... Be6 {[%clk 0:00:50.8]} 19. bxc5 {[%clk 0:01:36.2]}
19... Rac8 {[%clk 0:00:46.7]} 20. Qb2 {[%clk 0:01:35.2]} 20... Nxc4 {[%clk
0:00:22.7]} 21. Nxc4 {[%clk 0:01:34.8]} 21... Bxc4 {[%clk 0:00:24.6]} 22. Bxf6
{[%clk 0:01:36.2]} 22... gxf6 {[%clk 0:00:24.9]} 23. Rxf6 {[%clk 0:01:12.5]}
23... Qe5 {[%clk 0:00:19.3]} 24. Qxe5 {[%clk 0:01:10.7]} 24... Rxe5 {[%clk
0:00:21.2]} 25. Rb1 {[%clk 0:00:52.7]} 25... Rexc5 {[%clk 0:00:10.4]} 26. Bxe4
{[%clk 0:00:49.6]} 26... Ba6 {[%clk 0:00:06.7]} 27. Bf3 {[%clk 0:00:39]} 27...
Rc1+ {[%clk 0:00:05.7]} 28. Rxc1 {[%clk 0:00:39.6]} 28... Rxc1+ {[%clk
0:00:07.6]} 29. Kg2 {[%clk 0:00:41.3]} 29... Kg7 {[%clk 0:00:08.8]} 30. Rf4
{[%clk 0:00:41.6]} 30... Rc2 {[%clk 0:00:08.5]} 31. Re4 {[%clk 0:00:41.3]} 31...
Ra2 {[%clk 0:00:06.4]} 32. Re3 {[%clk 0:00:42.5]} 32... Rd2 {[%clk 0:00:04.8]}
33. g4 {[%clk 0:00:43.2]} 33... Kf6 {[%clk 0:00:04.8]} 34. h4 {[%clk 0:00:43.6]}
34... b6 {[%clk 0:00:06]} 35. Kg3 {[%clk 0:00:44.4]} 35... Bc4 {[%clk
0:00:06.9]} 36. Kf4 {[%clk 0:00:44.8]} 36... Rd4+ {[%clk 0:00:08]} 37. Re4
{[%clk 0:00:41.9]} 37... Rxe4+ {[%clk 0:00:07.1]} 38. Kxe4 {[%clk 0:00:43.8]}
38... Be6 {[%clk 0:00:06.2]} 39. e3 {[%clk 0:00:42.8]} 39... Kg6 {[%clk
0:00:07]} 40. Ke5 {[%clk 0:00:40.5]} 40... Bb3 {[%clk 0:00:05.9]} 41. Be4+
{[%clk 0:00:40.2]} 41... Kg7 {[%clk 0:00:06.9]} 42. g5 {[%clk 0:00:37.7]} 42...
hxg5 {[%clk 0:00:06.7]} 43. hxg5 {[%clk 0:00:39.1]} 43... Ba2 {[%clk 0:00:06.9]}
44. f4 {[%clk 0:00:40.4]} 44... Bb3 {[%clk 0:00:07.9]} 45. Bd3 {[%clk
0:00:40.9]} 45... Bd1 {[%clk 0:00:08.4]} 46. Ba6 {[%clk 0:00:40.5]} 46... Bf3
{[%clk 0:00:09]} 47. f5 {[%clk 0:00:40]} 47... Bg4 {[%clk 0:00:09.9]} 48. Kf4
{[%clk 0:00:40.7]} 48... Bd1 {[%clk 0:00:10.3]} 49. e4 {[%clk 0:00:41.9]} 49...
f6 {[%clk 0:00:11.8]} 50. gxf6+ {[%clk 0:00:41.6]} 50... Kxf6 {[%clk 0:00:13.7]}
51. e5+ {[%clk 0:00:43.2]} 51... Kf7 {[%clk 0:00:15.2]} 52. Bc4+ {[%clk
0:00:43]} 52... Kf8 {[%clk 0:00:15.7]} 53. f6 {[%clk 0:00:43.9]} 53... Bh5
{[%clk 0:00:14.9]} 54. Ba6 {[%clk 0:00:44.4]} 54... Bd1 {[%clk 0:00:14.4]} 55.
e6 {[%clk 0:00:44.8]} 55... Ba4 {[%clk 0:00:10]} 56. Ke5 {[%clk 0:00:43.8]}
56... Ke8 {[%clk 0:00:08.1]} 57. Kd6 {[%clk 0:00:44.7]} 57... Kf8 {[%clk
0:00:05.4]} 58. Bd3 {[%clk 0:00:43.9]} 58... Be8 {[%clk 0:00:04.2]} 59. Kc7
{[%clk 0:00:41.2]} 1-0

[Event "*** Titled Tuesday 3|2 Blitz"]
[Site "Chess.com"]
[Date "2016.07.05"]
[Round "5"]
[White "fireheart92"]
[Black "stefanodinn"]
[Result "0-1"]
[WhiteElo "1706"]
[BlackElo "2262"]
[TimeControl "180+2"]
[EndTime "12:02:51 PDT"]
[Termination "stefanodinn won by resignation"]

1. e4 {[%clk 0:03:01.9]} 1... c5 {[%clk 0:02:57.9]} 2. Nf3 {[%clk 0:03:02.8]}
2... d6 {[%clk 0:02:58.1]} 3. d4 {[%clk 0:03:03.7]} 3... cxd4 {[%clk 0:02:58.2]}
4. Nxd4 {[%clk 0:03:05.2]} 4... Nf6 {[%clk 0:02:58.9]} 5. Nc3 {[%clk 0:03:06.8]}
5... a6 {[%clk 0:02:58.1]} 6. Bg5 {[%clk 0:03:07.3]} 6... Nbd7 {[%clk
0:02:55.9]} 7. Bc4 {[%clk 0:03:06.6]} 7... e6 {[%clk 0:02:39.6]} 8. Qe2 {[%clk
0:03:04.1]} 8... h6 {[%clk 0:02:19.4]} 9. Bh4 {[%clk 0:03:01.9]} 9... Ne5 {[%clk
0:02:16.6]} 10. Bb3 {[%clk 0:02:55.8]} 10... g5 {[%clk 0:02:16.8]} 11. Bg3
{[%clk 0:02:56.3]} 11... Bg7 {[%clk 0:02:12.4]} 12. O-O-O {[%clk 0:02:54.7]}
12... Qe7 {[%clk 0:02:03.8]} 13. h4 {[%clk 0:02:51.8]} 13... Bd7 {[%clk
0:01:59]} 14. hxg5 {[%clk 0:02:48.8]} 14... hxg5 {[%clk 0:01:59.8]} 15. Rxh8+
{[%clk 0:02:48.8]} 15... Bxh8 {[%clk 0:02:00.2]} 16. Qd2 {[%clk 0:02:49]} 16...
O-O-O {[%clk 0:01:32.2]} 17. Qxg5 {[%clk 0:02:46.5]} 17... Rg8 {[%clk
0:01:32.6]} 18. Qh4 {[%clk 0:02:40.2]} 18... Bg7 {[%clk 0:01:24]} 19. Bxe5
{[%clk 0:01:44.8]} 19... dxe5 {[%clk 0:01:23.5]} 20. Nf3 {[%clk 0:01:46.3]}
20... Rh8 {[%clk 0:01:17.1]} 21. Qg3 {[%clk 0:01:45.6]} 21... Bh6+ {[%clk
0:01:16.6]} 22. Kb1 {[%clk 0:01:44.1]} 22... Bf4 {[%clk 0:01:17.3]} 23. Qg7
{[%clk 0:01:32.6]} 23... Rh7 {[%clk 0:01:09.1]} 24. Qxh7 {[%clk 0:01:32.5]}
24... Nxh7 {[%clk 0:01:09.2]} 25. g3 {[%clk 0:01:34.2]} 25... Bh6 {[%clk
0:00:46.8]} 26. Nxe5 {[%clk 0:01:34.9]} 26... Be8 {[%clk 0:00:47.8]} 27. Nc4
{[%clk 0:01:34.1]} 27... Bg7 {[%clk 0:00:43.7]} 28. e5 {[%clk 0:01:34.3]} 28...
Bc6 {[%clk 0:00:36.4]} 29. f4 {[%clk 0:01:33.9]} 29... Nf8 {[%clk 0:00:36.2]}
30. a4 {[%clk 0:01:18.8]} 30... Kc7 {[%clk 0:00:28.6]} 31. a5 {[%clk 0:01:17.7]}
31... Nd7 {[%clk 0:00:25.3]} 32. Nd6 {[%clk 0:01:16.2]} 32... f6 {[%clk
0:00:23.9]} 33. exf6 {[%clk 0:01:03]} 33... Bxf6 {[%clk 0:00:21.9]} 34. Nde4
{[%clk 0:01:02.4]} 34... Bxc3 {[%clk 0:00:21.2]} 35. Nxc3 {[%clk 0:01:02.4]}
35... Nc5 {[%clk 0:00:22.3]} 36. Bc4 {[%clk 0:01:03.5]} 36... Qg7 {[%clk
0:00:20.5]} 37. Ne2 {[%clk 0:00:54]} 37... Bf3 {[%clk 0:00:19.1]} 38. Re1 {[%clk
0:00:18.5]} 38... Bxe2 {[%clk 0:00:18.7]} 39. Rxe2 {[%clk 0:00:19.7]} 39... Qxg3
{[%clk 0:00:19]} 40. Bxe6 {[%clk 0:00:20.5]} 40... Nxe6 {[%clk 0:00:18.6]} 41.
Rxe6 {[%clk 0:00:20.8]} 41... Qxf4 {[%clk 0:00:19.6]} 42. Rb6 {[%clk 0:00:17.8]}
42... Qa4 {[%clk 0:00:15.3]} 43. b4 {[%clk 0:00:18.5]} 43... Qa3 {[%clk
0:00:13.7]} 44. c4 {[%clk 0:00:09.5]} 44... Qb3+ {[%clk 0:00:12.9]} 45. Ka1
{[%clk 0:00:11]} 45... Qxc4 {[%clk 0:00:11.3]} 46. Kb2 {[%clk 0:00:12.6]} 46...
Qd3 {[%clk 0:00:10.7]} 47. Ka2 {[%clk 0:00:10.9]} 47... Qc3 {[%clk 0:00:10.8]}
48. Kb1 {[%clk 0:00:12.3]} 48... Qb3+ {[%clk 0:00:09.4]} 49. Kc1 {[%clk
0:00:13.8]} 49... Kc8 {[%clk 0:00:07.8]} 50. Kd2 {[%clk 0:00:14.5]} 50... Kc7
{[%clk 0:00:09.1]} 51. Kc1 {[%clk 0:00:15.8]} 51... Qa2 {[%clk 0:00:10]} 52. Kd1
{[%clk 0:00:16.1]} 52... Qb2 {[%clk 0:00:11.3]} 53. Ke1 {[%clk 0:00:17.4]} 53...
Qc2 {[%clk 0:00:12.3]} 54. Kf1 {[%clk 0:00:18.3]} 54... Qd2 {[%clk 0:00:13]} 55.
Kg1 {[%clk 0:00:19.7]} 55... Qd4+ {[%clk 0:00:10.5]} 56. Kf1 {[%clk 0:00:20.8]}
56... Qxb6 {[%clk 0:00:11.3]} 57. axb6+ {[%clk 0:00:22.4]} 57... Kxb6 {[%clk
0:00:12.7]} 58. Ke2 {[%clk 0:00:23.9]} 58... Kb5 {[%clk 0:00:14]} 59. Kd3 {[%clk
0:00:23.9]} 59... Kxb4 {[%clk 0:00:15]} 0-1

[Event "*** Titled Tuesday 3|2 Blitz"]
[Site "Chess.com"]
[Date "2016.07.05"]
[Round "5"]
[White "bilelou"]
[Black "Aguiar94"]
[Result "1-0"]
[WhiteElo "2268"]
[BlackElo "2467"]
[TimeControl "180+2"]
[EndTime "12:02:57 PDT"]
[Termination "bilelou won on time"]

1. d4 {[%clk 0:02:56.8]} 1... Nf6 {[%clk 0:02:58.9]} 2. c4 {[%clk 0:02:57.5]}
2... e6 {[%clk 0:02:59.5]} 3. Nf3 {[%clk 0:02:58.2]} 3... b6 {[%clk 0:02:59.8]}
4. g3 {[%clk 0:02:58.4]} 4... Ba6 {[%clk 0:03:00.2]} 5. Qa4 {[%clk 0:02:59.1]}
5... Bb7 {[%clk 0:02:57.5]} 6. Bg2 {[%clk 0:02:59.7]} 6... c5 {[%clk 0:02:58.7]}
7. dxc5 {[%clk 0:03:00.9]} 7... bxc5 {[%clk 0:02:59.3]} 8. O-O {[%clk
0:03:02.5]} 8... Be7 {[%clk 0:02:58.8]} 9. Nc3 {[%clk 0:03:03.9]} 9... O-O
{[%clk 0:02:53.4]} 10. Rd1 {[%clk 0:02:55.5]} 10... Qb6 {[%clk 0:02:52.1]} 11.
Bf4 {[%clk 0:02:52]} 11... d6 {[%clk 0:02:36.8]} 12. Rab1 {[%clk 0:02:52.2]}
12... Bc6 {[%clk 0:02:26.3]} 13. Qc2 {[%clk 0:02:51.1]} 13... Rd8 {[%clk
0:02:24.8]} 14. a3 {[%clk 0:02:51.8]} 14... Ne8 {[%clk 0:02:00.5]} 15. b4 {[%clk
0:02:46]} 15... h6 {[%clk 0:01:51.7]} 16. b5 {[%clk 0:02:04.2]} 16... Bb7 {[%clk
0:01:51.7]} 17. a4 {[%clk 0:02:05.7]} 17... g5 {[%clk 0:01:43]} 18. Bd2 {[%clk
0:02:00.6]} 18... Nd7 {[%clk 0:01:42.9]} 19. a5 {[%clk 0:01:58.9]} 19... Qc7
{[%clk 0:01:35.5]} 20. h4 {[%clk 0:01:56.9]} 20... g4 {[%clk 0:01:33.4]} 21. Ne1
{[%clk 0:01:57.9]} 21... Kg7 {[%clk 0:01:06.8]} 22. Bxb7 {[%clk 0:01:29.7]}
22... Qxb7 {[%clk 0:01:08.7]} 23. Ng2 {[%clk 0:01:31.1]} 23... Nef6 {[%clk
0:01:03.6]} 24. Bf4 {[%clk 0:01:20.4]} 24... Ne5 {[%clk 0:00:45.8]} 25. Bxe5
{[%clk 0:01:20.8]} 25... dxe5 {[%clk 0:00:47.7]} 26. a6 {[%clk 0:01:16.8]} 26...
Qc7 {[%clk 0:00:44.1]} 27. Ne4 {[%clk 0:01:18.1]} 27... Ne8 {[%clk 0:00:38.6]}
28. Ne3 {[%clk 0:01:07.8]} 28... f5 {[%clk 0:00:37.8]} 29. Nc3 {[%clk 0:01:09]}
29... Rd4 {[%clk 0:00:33.2]} 30. Ncd5 {[%clk 0:01:02.8]} 30... exd5 {[%clk
0:00:23.5]} 31. Nxf5+ {[%clk 0:01:03.5]} 31... Kf6 {[%clk 0:00:19.8]} 32. Nxd4
{[%clk 0:01:04.2]} 32... cxd4 {[%clk 0:00:21.1]} 33. Qh7 {[%clk 0:01:02.1]}
33... dxc4 {[%clk 0:00:17.6]} 34. Qxh6+ {[%clk 0:01:02.8]} 34... Kf7 {[%clk
0:00:15.6]} 35. Qh5+ {[%clk 0:01:04.4]} 35... Kf8 {[%clk 0:00:15]} 36. Qxg4
{[%clk 0:01:04.7]} 36... c3 {[%clk 0:00:15.5]} 37. Qf3+ {[%clk 0:01:04.7]} 37...
Bf6 {[%clk 0:00:11.4]} 38. Qxa8 {[%clk 0:01:06.6]} 38... c2 {[%clk 0:00:12.3]}
39. Qc6 {[%clk 0:01:07.7]} 39... cxd1=Q+ {[%clk 0:00:12.2]} 40. Rxd1 {[%clk
0:01:08.8]} 40... Qxc6 {[%clk 0:00:13.6]} 41. bxc6 {[%clk 0:01:09.5]} 41... Nc7
{[%clk 0:00:14.4]} 42. Rb1 {[%clk 0:01:10.5]} 42... Nxa6 {[%clk 0:00:14.2]} 43.
Rb7 {[%clk 0:01:11.1]} 43... Bd8 {[%clk 0:00:12.6]} 44. Rxa7 {[%clk 0:01:12.1]}
44... Nc7 {[%clk 0:00:13.3]} 45. Kg2 {[%clk 0:01:12.2]} 45... Ke7 {[%clk
0:00:12.9]} 46. h5 {[%clk 0:01:11.2]} 46... Kd6 {[%clk 0:00:14.5]} 47. h6 {[%clk
0:01:12.5]} 47... Bf6 {[%clk 0:00:16]} 48. h7 {[%clk 0:01:11.8]} 48... Kxc6
{[%clk 0:00:17.1]} 49. g4 {[%clk 0:01:11.6]} 49... e4 {[%clk 0:00:16.9]} 50. g5
{[%clk 0:01:12.7]} 50... Bg7 {[%clk 0:00:18]} 51. g6 {[%clk 0:01:12.8]} 51...
Kb6 {[%clk 0:00:16.9]} 52. Ra1 {[%clk 0:01:11.1]} 52... Ne6 {[%clk 0:00:16.7]}
53. Kg3 {[%clk 0:01:10.1]} 53... Nf8 {[%clk 0:00:17.1]} 54. Kf4 {[%clk
0:01:08.4]} 54... e3 {[%clk 0:00:17.3]} 55. fxe3 {[%clk 0:01:04.6]} 55... Nxg6+
{[%clk 0:00:15.9]} 56. Kg5 {[%clk 0:01:05.5]} 56... Nf8 {[%clk 0:00:13.4]} 57.
Rh1 {[%clk 0:01:04.5]} 57... Bh8 {[%clk 0:00:11.7]} 58. exd4 {[%clk 0:01:05.2]}
58... Ne6+ {[%clk 0:00:12.6]} 59. Kg6 {[%clk 0:01:04.4]} 59... Nxd4 {[%clk
0:00:14.5]} 60. e4 {[%clk 0:01:05.2]} 60... Kc7 {[%clk 0:00:14.6]} 61. Kf7
{[%clk 0:01:06.5]} 61... Nc6 {[%clk 0:00:06.2]} 62. Rh5 {[%clk 0:01:06.4]} 62...
Kd6 {[%clk 0:00:06.4]} 63. Kg8 {[%clk 0:01:07.6]} 63... Bc3 {[%clk 0:00:04.3]}
64. e5+ {[%clk 0:01:05.2]} 1-0

[Event "*** Titled Tuesday 3|2 Blitz"]
[Site "Chess.com"]
[Date "2016.07.05"]
[Round "5"]
[White "Astaneh"]
[Black "ajkom197"]
[Result "1-0"]
[WhiteElo "2470"]
[BlackElo "2237"]
[TimeControl "180+2"]
[EndTime "12:03:17 PDT"]
[Termination "Astaneh won by checkmate"]

1. d4 {[%clk 0:03:01.9]} 1... Nf6 {[%clk 0:02:56.8]} 2. c4 {[%clk 0:03:00.8]}
2... g6 {[%clk 0:02:57.7]} 3. Nf3 {[%clk 0:03:01]} 3... Bg7 {[%clk 0:02:59.2]}
4. g3 {[%clk 0:03:00.7]} 4... d6 {[%clk 0:03:00.5]} 5. Bg2 {[%clk 0:03:01.9]}
5... O-O {[%clk 0:03:02.2]} 6. O-O {[%clk 0:03:02.9]} 6... c6 {[%clk 0:03:03.8]}
7. Nc3 {[%clk 0:03:03.6]} 7... Nbd7 {[%clk 0:03:05.4]} 8. e4 {[%clk 0:03:03.5]}
8... e5 {[%clk 0:03:06.5]} 9. d5 {[%clk 0:03:01]} 9... cxd5 {[%clk 0:03:08.4]}
10. cxd5 {[%clk 0:03:01.5]} 10... a6 {[%clk 0:03:07.7]} 11. h3 {[%clk
0:02:54.2]} 11... b5 {[%clk 0:03:07.2]} 12. Ne1 {[%clk 0:02:48.1]} 12... Bb7
{[%clk 0:03:05.4]} 13. Nd3 {[%clk 0:02:48.5]} 13... Rc8 {[%clk 0:03:05.5]} 14.
Be3 {[%clk 0:02:47.5]} 14... Nh5 {[%clk 0:03:02.7]} 15. a4 {[%clk 0:02:42.2]}
15... bxa4 {[%clk 0:02:48.7]} 16. Qxa4 {[%clk 0:02:32.6]} 16... f5 {[%clk
0:02:45]} 17. Qb4 {[%clk 0:02:17.9]} 17... f4 {[%clk 0:02:30.9]} 18. Qxb7 {[%clk
0:02:09.5]} 18... fxe3 {[%clk 0:02:26.1]} 19. Kh2 {[%clk 0:01:40.7]} 19... exf2
{[%clk 0:02:21.5]} 20. Rxf2 {[%clk 0:01:18.6]} 20... Rxf2 {[%clk 0:02:12.4]} 21.
Nxf2 {[%clk 0:01:19.3]} 21... Rb8 {[%clk 0:02:13.3]} 22. Qxa6 {[%clk 0:01:17]}
22... Rxb2 {[%clk 0:02:14]} 23. Ncd1 {[%clk 0:00:57.7]} 23... Rb6 {[%clk
0:01:40.6]} 24. Qa5 {[%clk 0:00:47.5]} 24... Qg5 {[%clk 0:01:37.9]} 25. Ra3
{[%clk 0:00:41.2]} 25... Bf8 {[%clk 0:01:15.8]} 26. Rf3 {[%clk 0:00:27.2]} 26...
Nhf6 {[%clk 0:01:05.8]} 27. Ne3 {[%clk 0:00:19.9]} 27... Rb3 {[%clk 0:00:59.1]}
28. Qd2 {[%clk 0:00:17.2]} 28... Bh6 {[%clk 0:00:56.1]} 29. Nfd1 {[%clk
0:00:08.7]} 29... Nh5 {[%clk 0:00:47.4]} 30. Qc2 {[%clk 0:00:08.2]} 30... Rb8
{[%clk 0:00:31.8]} 31. Ng4 {[%clk 0:00:09.6]} 31... Bf8 {[%clk 0:00:26.8]} 32.
Qc7 {[%clk 0:00:10.2]} 32... Qd8 {[%clk 0:00:26.5]} 33. Qxd8 {[%clk 0:00:10.5]}
33... Rxd8 {[%clk 0:00:28.4]} 34. h4 {[%clk 0:00:11.1]} 34... Be7 {[%clk
0:00:28.5]} 35. Bh3 {[%clk 0:00:12.3]} 35... Ndf6 {[%clk 0:00:29.5]} 36. Nxf6+
{[%clk 0:00:12.5]} 36... Nxf6 {[%clk 0:00:31.4]} 37. Nf2 {[%clk 0:00:14]} 37...
Rb8 {[%clk 0:00:31]} 38. Be6+ {[%clk 0:00:14.5]} 38... Kg7 {[%clk 0:00:32]} 39.
Kh3 {[%clk 0:00:15.1]} 39... Rb4 {[%clk 0:00:31.2]} 40. g4 {[%clk 0:00:15.1]}
40... Nxe4 {[%clk 0:00:07.8]} 41. Nxe4 {[%clk 0:00:17]} 41... Rxe4 {[%clk
0:00:09.2]} 42. Rf7+ {[%clk 0:00:18.4]} 42... Kh8 {[%clk 0:00:10.8]} 43. Rxe7
{[%clk 0:00:19.3]} 43... Re3+ {[%clk 0:00:12.5]} 44. Kg2 {[%clk 0:00:20.9]}
44... Re2+ {[%clk 0:00:14.4]} 45. Kf3 {[%clk 0:00:22.5]} 45... Rb2 {[%clk
0:00:15]} 46. g5 {[%clk 0:00:23.2]} 46... Rb8 {[%clk 0:00:14.9]} 47. Kg4 {[%clk
0:00:21]} 47... Rb4+ {[%clk 0:00:15.6]} 48. Kf3 {[%clk 0:00:22]} 48... Rb3+
{[%clk 0:00:17.1]} 49. Ke4 {[%clk 0:00:21.8]} 49... Rb4+ {[%clk 0:00:18.6]} 50.
Kd3 {[%clk 0:00:23.4]} 50... Rb8 {[%clk 0:00:19.5]} 51. Kc4 {[%clk 0:00:24.1]}
51... Ra8 {[%clk 0:00:18.8]} 52. Kb5 {[%clk 0:00:25.3]} 52... e4 {[%clk
0:00:20.1]} 53. Kc4 {[%clk 0:00:26.7]} 53... Rb8 {[%clk 0:00:20.7]} 54. Kd4
{[%clk 0:00:28]} 54... Rb4+ {[%clk 0:00:22.1]} 55. Ke3 {[%clk 0:00:29.6]} 55...
h5 {[%clk 0:00:21.6]} 56. gxh6 {[%clk 0:00:29.9]} 56... Rb3+ {[%clk 0:00:22.9]}
57. Kxe4 {[%clk 0:00:30.1]} 57... Rb1 {[%clk 0:00:24.8]} 58. Kf4 {[%clk
0:00:24.1]} 58... Rf1+ {[%clk 0:00:25.4]} 59. Kg5 {[%clk 0:00:22.9]} 59... Rg1+
{[%clk 0:00:25.5]} 60. Kf6 {[%clk 0:00:23.4]} 60... Rf1+ {[%clk 0:00:27]} 61.
Kg5 {[%clk 0:00:24.6]} 61... Rg1+ {[%clk 0:00:27.9]} 62. Bg4 {[%clk 0:00:26.2]}
62... Rg2 {[%clk 0:00:19.4]} 63. Re6 {[%clk 0:00:21.7]} 63... Kh7 {[%clk
0:00:20.6]} 64. Rxd6 {[%clk 0:00:19.9]} 64... Rd2 {[%clk 0:00:21.8]} 65. Rd7+
{[%clk 0:00:19.3]} 65... Kg8 {[%clk 0:00:23.7]} 66. h7+ {[%clk 0:00:19.3]} 66...
Kh8 {[%clk 0:00:24.9]} 67. Kh6 {[%clk 0:00:20.7]} 67... Rxd5 {[%clk 0:00:25.1]}
68. Rxd5 {[%clk 0:00:22.6]} 68... g5 {[%clk 0:00:22.5]} 69. Rd8# {[%clk
0:00:24.5]} 1-0